Cogmind - Beta 13 @@@ ROGUE MODE // 2024.04.19 @ 14:51:52 Player: RD-BNK(r) Result: Destroyed by Cetus Guard with Advanced Variable Charge Gun Performance ------------- Evolutions (4) 2000 Regions Visited (10) 2000 Robots Destroyed (106) 530 Value Destroyed (2298) 2298 Prototype IDs (36) 720 Alien Tech Used (0) 0 Bonus (1039) 1039 TOTAL SCORE: 8587 Bonus ------- High Alert Combat Kills 51 Follower Combat Kills 1590 Aligned with FarCom 300 Friendly Fire -902 Cogmind --------- Core Integrity 0/850 Matter 300/300 Energy 98/100 System Corruption 2% Temperature Cool (9) Movement Core (50) Location -6/Cetus Parts ------- > --- POWER (1) -------- (None) > --- PROPULSION (5) --- (None) > --- UTILITY (7) ------ Hacking Suite > --- WEAPON (2) ------- (None) > --- INVENTORY (5) ---- Fission Core Superbattery (1500) Advanced Weight Redist. System Long-range Missile Launcher Heavy Mace Peak State ------------ > --- POWER ------------ Fission Core > --- PROPULSION ------- Improved Airjet Improved Airjet Improved Airjet Cooled Aerolev Unit Cooled Aerolev Unit > --- UTILITY ---------- Medium Storage Unit Triangulator Advanced Visual Processing Unit Stasis Canceller Hacking Suite Hacking Suite Improved Hacking Suite > --- WEAPON ----------- Cooled Particle Cannon Long-range Missile Launcher > --- INVENTORY -------- Improved Deuterium Engine Improved Airjet Power Amplifier Superbattery Advanced Weight Redist. System Advanced ECM Suite Hacking Suite Enhanced Autogun Heavy Mace Ripper [Rating: 71] Favorites ----------- Power Light Ion Engine Engine Light Ion Engine Power Core Fission Core Propulsion Improved Airjet Treads Light Treads Leg Carbon-fiber Leg Wheel Wheel Hover Unit Improved Airjet Flight Unit Improved VTOL Module Utility Hacking Suite Device Triangulator Storage Large Storage Unit Processor Target Analyzer Hackware Hacking Suite Protection Hardened Light Armor Plating Weapon Autogun Energy Gun Improved EM Shotgun Energy Cannon Cooled Particle Cannon Ballistic Gun Autogun Launcher Long-range Missile Launcher Impact Weapon Heavy Mace Slashing Weapon Phasing Sabre Build | -11 -10 -10 -10 -9 -8 -7 -7 -6 -6 -6 ------- Run | Yrd Mat Min Exi Min Mat Fac Sto Fac Ext Cet Slots Evolved 8 | . . . . . 4 2 . 2 . . Power . | . . . . . . . . . . . Propulsion 3 | . . . . . 2 . . 1 . . Utility 5 | . . . . . 2 2 . 1 . . Weapon . | . . . . . . . . . . . Parts Attached 149 | 3 13 4 . 1 47 21 15 23 22 . Power 11 | . 1 1 . . 2 1 2 3 1 . Engine 8 | . 1 1 . . 1 1 2 1 1 . Core 3 | . . . . . 1 . . 2 . . Reactor . | . . . . . . . . . . . Propulsion 46 | 2 3 1 . . 18 5 6 5 6 . Treads 10 | 2 1 . . . 7 . . . . . Leg 12 | . . . . . 7 . . . 5 . Wheel 5 | . 2 1 . . 1 . 1 . . . Hover 9 | . . . . . . . 4 4 1 . Flight 10 | . . . . . 3 5 1 1 . . Utility 38 | 1 4 . . . 6 8 3 12 4 . Device 19 | 1 . . . . 1 3 3 9 2 . Storage 4 | . 2 . . . . 1 . . 1 . Processor 3 | . . . . . . 2 . 1 . . Hackware 6 | . . . . . 2 1 . 2 1 . Protection 6 | . 2 . . . 3 1 . . . . Artifact . | . . . . . . . . . . . Weapon 54 | . 5 2 . 1 21 7 4 3 11 . Energy Gun 3 | . 1 . . . 2 . . . . . Energy Cannon 4 | . . . . . . 1 . . 3 . Ballistic Gun 27 | . 4 1 . . 12 3 3 2 2 . Ballistic Cannon . | . . . . . . . . . . . Launcher 6 | . . 1 . . 1 1 . . 3 . Special Weapon . | . . . . . . . . . . . Impact Weapon 11 | . . . . 1 6 2 1 1 . . Slashing Weapon 3 | . . . . . . . . . 3 . Piercing Weapon . | . . . . . . . . . . . Special Melee Weapon . | . . . . . . . . . . . Unidentified Prototypes 9 | . . . . . 2 2 2 2 1 . Parts Lost 27 | . 6 1 . . 3 1 3 . 13 . Power 4 | . 1 1 . . . . 1 . 1 . Propulsion 10 | . 3 . . . . . 2 . 5 . Utility 9 | . . . . . 2 1 . . 6 . Weapon 4 | . 2 . . . 1 . . . 1 . Highest Loss Streak 10 | . 3 1 . . 2 1 3 . 10 . To Critical Strikes . | . . . . . . . . . . . Average Slot Usage (%) 94 | . 98 99 100 100 88 93 92 99 94 6 Engine 6 | . 13 13 14 14 5 7 6 . 2 . Core 2 | . . . . . 3 . . 5 3 . Treads 6 | . 14 6 . . 14 . . . . . Leg 4 | . . . . . 8 . . . 13 . Wheel 7 | . 12 21 28 28 8 . . . . . Hover 6 | . . . . . . . . 33 18 . Flight 4 | . . . . . . 29 26 . . . Device 5 | . 5 . . . 1 12 11 13 8 . Storage 9 | . 14 14 14 14 9 7 7 6 5 . Processor 3 | . . . . . . 6 15 9 5 . Hackware 9 | . . . . . 11 10 7 16 20 6 Protection 5 | . 8 14 14 14 7 1 . . . . Energy Gun 1 | . 2 . . . 3 . . . . . Ballistic Gun 12 | . 25 27 28 19 12 7 7 6 2 . Impact Weapon 2 | . . . . 8 1 6 6 5 1 . Naked Turns . | . . . . . . . . . . . Heaviest Build 48 | 11 34 34 34 34 48 25 27 31 40 . Greatest Support 80 | 40 40 20 20 20 80 26 36 45 76 3 Greatest Overweight (x) 6 | . 4 1 1 1 6 . 1 6 2 . Average Overweight (x) . | . . 1 1 1 1 . . . . . Largest Inventory Capacity 15 | 8 15 15 15 15 15 15 10 10 10 5 Average Capacity 12 | 8 10 15 15 15 15 10 10 10 9 5 Most Carried 15 | 6 11 15 15 15 15 14 10 10 10 5 Average Carried 11 | 4 6 13 14 14 14 9 9 9 8 5 Final Capacity 15 | 8 15 15 15 15 15 10 10 10 5 5 Final Carried 15 | 4 11 15 14 15 15 10 10 10 5 5 Class Distribution -------------------- 36% | Mutant 29% | Hacker-Mutant 15% | Scavenger-Mutant 9% | Sprinter 4% | Hacker-Sprinter 3% | Commander-Mutant Dominant Class ---------------- Mutant | -10/Materials Mutant | -10/Mines Mutant | -10/Exiles Mutant | -9/Mines Scavenger-Mutant | -8/Materials Sprinter | -7/Factory Sprinter | -7/Storage Hacker-Mutant | -6/Factory Hacker-Mutant | -6/Extension Hacker-Mutant | -6/Cetus Resources | -11 -10 -10 -10 -9 -8 -7 -7 -6 -6 -6 ----------- Run | Yrd Mat Min Exi Min Mat Fac Sto Fac Ext Cet Matter Collected 2561 | 225 240 85 . 94 723 179 348 264 403 . Remotely . | . . . . . . . . . . . Salvage Created 3762 | 25 430 104 . . 1072 203 288 478 1162 . Parts 167 | 6 23 16 . . 65 4 10 5 38 . Haulers Intercepted 10 | . . . . . 4 1 1 4 . . Recyclers Shooed 1 | . . . . . 1 . . . . . Parts Field Recycled . | . . . . . . . . . . . Retrieved Matter . | . . . . . . . . . . . Parts Self-Destructed . | . . . . . . . . . . . Prevented . | . . . . . . . . . . . Kills | -11 -10 -10 -10 -9 -8 -7 -7 -6 -6 -6 ------- Run | Yrd Mat Min Exi Min Mat Fac Sto Fac Ext Cet Combat Hostiles Destroyed 58 | . 11 9 . . 22 1 2 . 13 . Melee 5 | . . . . . 2 . 2 . 1 . Guns 32 | . 11 6 . . 15 . . . . . Cannons 8 | . . . . . . . . . 8 . AOE 12 | . . 3 . . 5 . . . 4 . Classes Destroyed 14 | 1 3 1 . . 6 1 1 . 1 . Worker 5 | . . 1 . . 3 . . . 1 . Builder 7 | . . . . . 1 . . 3 3 . Tunneler 4 | 1 . 1 . . . . . 1 1 . Hauler 10 | . . . . . 4 1 1 4 . . Recycler 7 | . . . . . . 1 2 . 4 . Operator 6 | . 2 . . . 1 1 . 1 1 . Watcher 5 | . . . . . 2 2 . . 1 . Swarmer 26 | . 3 9 . . 8 1 . . 5 . Grunt 21 | . 8 . . . 7 . . . 6 . Brawler 1 | . . . . . 1 . . . . . Sentry 8 | . . . . . 5 . 1 . 2 . Hunter 1 | . . . . . 1 . . . . . Programmer 1 | . . . . . . . 1 . . . Thug 1 | . . . . . . . . . 1 . Butcher 1 | . . . . . . . . . 1 . Guerrilla 2 | . . . . . . . . . 2 . Best Kill Streak 7 | 1 5 5 . . 7 2 2 3 7 . Combat Bots Only 7 | . 5 3 . . 7 1 2 . 6 . Max Kills in Single Turn 7 | 1 1 2 . . 7 1 1 1 5 . Gunslinging 1 | . . 1 . . 1 . . . . . Exploded 4 | . . 2 . . 4 . . . 3 . Melee 1 | . . . . . 1 . 1 . 1 . Uniques/NPCs Destroyed . | . . . . . . . . . . . Combat | -11 -10 -10 -10 -9 -8 -7 -7 -6 -6 -6 -------- Run | Yrd Mat Min Exi Min Mat Fac Sto Fac Ext Cet Hostile Shots Fired 467 | . 93 31 . . 73 19 70 6 174 1 Missed 148 | . 15 7 . . 22 4 34 2 64 . Damage Taken 4742 | . 882 187 . . 807 224 311 41 2268 22 Core 1223 | . 146 34 . . 37 56 92 22 814 22 Absorbed by Shields 73 | . . . . . . . 11 . 62 . Core Remaining (%) 74 | 100 . . . 28 93 . 78 . . . Volleys Fired 192 | 2 51 16 . . 51 9 . 3 60 . Largest 2 | 2 2 2 . . 2 1 . 2 2 . Hottest 90 | 40 60 46 . . 73 28 . 50 90 . Shots Fired 312 | 4 102 30 . . 98 9 . 4 65 . Gun 261 | 4 102 28 . . 97 9 . 4 17 . Cannon 38 | . . . . . . . . . 38 . Launcher 13 | . . 2 . . 1 . . . 10 . Special . | . . . . . . . . . . . Kinetic 218 | 4 91 28 . . 65 9 . 4 17 . Thermal 38 | . . . . . . . . . 38 . Explosive 13 | . . 2 . . 1 . . . 10 . Electromagnetic 43 | . 11 . . . 32 . . . . . Robot Hit Streak 17 | 1 9 5 . . 16 10 . 5 17 . Robot Miss Streak 6 | 1 3 3 . . 6 3 . 1 3 . Penetration Max . | . . . . . . . . . . . Secondary Targets 3 | . . 2 . . 1 . . . . . Max Gunslinging Chain 1 | . . 1 . . 1 . . . . . Shots Hit Robots 276 | 2 71 17 . . 87 15 15 18 51 . Core Hits 170 | 2 26 11 . . 75 2 3 3 48 . Critical Kills 2 | . . . . . . . . 2 . . Critical Parts Destroyed 12 | . . 1 . . . 2 6 3 . . Critical Strikes 14 | . . 1 . . . 2 6 5 . . Destroy 1 | . . 1 . . . . . . . . Smash 13 | . . . . . . 2 6 5 . . Melee Attacks 162 | . . . . 7 26 26 28 56 19 . Impact 147 | . . . . 7 26 26 28 56 4 . Slashing 15 | . . . . . . . . . 15 . Piercing . | . . . . . . . . . . . Sneak Attacks 20 | . . . . . 3 4 3 9 1 . Combat Hostiles 2 | . . . . . 1 1 . . . . Follow-up Attacks . | . . . . . . . . . . . Damage Inflicted 9422 | 14 737 468 . . 2304 649 596 1173 3481 . Guns 2613 | 14 737 248 . . 1278 106 . 34 196 . Cannons 1203 | . . . . . . . . . 1203 . Explosions 2266 | . . 220 . . 393 . . . 1653 . Melee 3330 | . . . . . 623 543 596 1139 429 . Ramming 10 | . . . . . 10 . . . . . Kinetic 2080 | 14 644 248 . . 838 106 . 34 196 . Thermal 1228 | . . . . . 25 . . . 1203 . Explosive 2241 | . . 220 . . 368 . . . 1653 . Electromagnetic 533 | . 93 . . . 440 . . . . . Impact 3068 | . . . . . 623 543 596 1139 167 . Slashing 262 | . . . . . . . . . 262 . Piercing . | . . . . . . . . . . . Highest Corruption 9 | . . . . . 9 . 1 1 2 2 Average Corruption 6 | . . . . . 7 . 1 1 1 2 Corruption Purged 1 | . . . . . . . . 1 . . Corruption Blocked . | . . . . . . . . . . . Effects 66 | . . . . . 63 . 2 . 1 . Message Errors 19 | . . . . . 18 . 1 . . . Matter Fused 16 | . . . . . 15 . 1 . . . Heat Flow Errors 10 | . . . . . 9 . . . 1 . Energy Discharges 5 | . . . . . 5 . . . . . Parts Rejected 1 | . . . . . 1 . . . . . Parts Fused 2 | . . . . . 2 . . . . . Data Loss (minor) 4 | . . . . . 4 . . . . . Data Loss (major) 6 | . . . . . 6 . . . . . Misfires 1 | . . . . . 1 . . . . . Alerts 2 | . . . . . 2 . . . . . Overload Shots 17 | . . . . . . . . . 17 . Effects 1 | . . . . . . . . . 1 . Energy Bleed 1 | . . . . . . . . . 1 . Overflow Damage 1303 | . . 11 . . 248 221 238 420 165 . Projectiles 2 | . . . . . . . . . 2 . Explosions 134 | . . 11 . . 30 . . . 93 . Melee 1167 | . . . . . 218 221 238 420 70 . Knockbacks 8 | . . . . . 2 2 2 1 1 . Impact 8 | . . . . . 2 2 2 1 1 . Kinetic . | . . . . . . . . . . . Secondary . | . . . . . . . . . . . Self-Inflicted Damage 147 | . . . . . 95 . . . 52 . Shots 3 | . . . . . 2 . . . 1 . Rammed 1 | . . . . . 1 . . . . . Targets Rammed 1 | . . . . . 1 . . . . . Kicked . | . . . . . . . . . . . Crushed . | . . . . . . . . . . . Highest Temperature 329 | . 163 51 . . 329 2 . 2 215 . Average Temperature 60 | . 42 18 . . 79 2 . 1 72 . Received Heat Transfer 1160 | . 432 . . . 333 . 46 . 340 9 Effects 1 | . . . . . 1 . . . . . Interference 1 | . . . . . 1 . . . . . Siege Activations . | . . . . . . . . . . . Robots Corrupted . | . . . . . . . . . . . Combat Hostiles . | . . . . . . . . . . . Parts Fried 38 | . . . . . 9 7 3 14 5 . Impact Corruptions 42 | . . . . . 7 9 10 14 2 . Robots Melted . | . . . . . . . . . . . Combat Hostiles . | . . . . . . . . . . . Parts Melted 1 | . . . . . . . . . 1 . Heat Transferred 1342 | . . . . . 50 . . . 1292 . Parts Sabotaged 2 | . . . . . . . . . 2 . Parts Stolen . | . . . . . . . . . . . Parts Stripped . | . . . . . . . . . . . Power Chain Reactions 2 | . . . . . 2 . . . . . Alert | -11 -10 -10 -10 -9 -8 -7 -7 -6 -6 -6 ------- Run | Yrd Mat Min Exi Min Mat Fac Sto Fac Ext Cet Peak Influence 903 | 5 127 189 . 54 359 512 284 185 903 455 Initial 455 | . 3 49 . . . 161 222 92 27 455 Average 191 | 2 79 95 . 15 207 327 175 74 370 455 Maximum Alert Level 3 | . . . . . 1 2 1 . 3 2 Low Security (%) 58 | 100 100 100 . 100 36 13 59 100 32 . Level 1 31 | . . . . . 63 57 40 . 20 . Level 2 7 | . . . . . . 29 . . 32 100 Level 3 2 | . . . . . . . . . 14 . Level 4 . | . . . . . . . . . . . Level 5 . | . . . . . . . . . . . High Security . | . . . . . . . . . . . Max Security . | . . . . . . . . . . . Squads Dispatched 22 | . 1 . . 1 2 4 7 3 4 . Investigation 4 | . 1 . . . . 2 1 . . . Extermination 3 | . . . . . . 1 1 1 . . Reinforcement 9 | . . . . . 2 1 2 2 2 . Assault 3 | . . . . 1 . . . . 2 . Garrison 3 | . . . . . . . 3 . . . Intercept . | . . . . . . . . . . . Searches Triggered . | . . . . . . . . . . . Construction Impeded 1 | . . . . . . . . . 1 . Haulers Reinforced 2 | . . . . . . . 1 1 . . Active Scanning Responses . | . . . . . . . . . . . Cargo Convoy Interrupts . | . . . . . . . . . . . Stealth | -11 -10 -10 -10 -9 -8 -7 -7 -6 -6 -6 --------- Run | Yrd Mat Min Exi Min Mat Fac Sto Fac Ext Cet Distress Signals 19 | . 2 . . . 3 2 4 3 4 1 Communications Jammed . | . . . . . . . . . . . Distress Signals . | . . . . . . . . . . . Times Spotted 170 | . 20 9 . . 37 19 16 11 54 4 Peak Tracking Total 10 | . 7 3 . . 5 9 5 4 10 5 Tactical Retreats 16 | . . . . . 2 5 1 5 3 . Traps | -11 -10 -10 -10 -9 -8 -7 -7 -6 -6 -6 ------- Run | Yrd Mat Min Exi Min Mat Fac Sto Fac Ext Cet Traps Triggered 10 | . . . . . 3 . 1 3 3 . Indirectly . | . . . . . . . . . . . Trap Hack Attempts . | . . . . . . . . . . . Triggered . | . . . . . . . . . . . Disarmed . | . . . . . . . . . . . Reprogrammed . | . . . . . . . . . . . Reused . | . . . . . . . . . . . Traps Extracted . | . . . . . . . . . . . Installed . | . . . . . . . . . . . Triggered . | . . . . . . . . . . . Machines | -11 -10 -10 -10 -9 -8 -7 -7 -6 -6 -6 ---------- Run | Yrd Mat Min Exi Min Mat Fac Sto Fac Ext Cet Machines Disabled 6 | . . . . . 1 2 1 . 2 . Max in Single Turn 1 | . . . . . 1 1 1 . 1 . Garrison Access 3 | . . . . . 1 1 . 1 . . Machines Repaired . | . . . . . . . . . . . Machines Dismantled . | . . . . . . . . . . . Machines Sabotaged . | . . . . . . . . . . . Overloaded Fab Kills . | . . . . . . . . . . . Hacking | -11 -10 -10 -10 -9 -8 -7 -7 -6 -6 -6 --------- Run | Yrd Mat Min Exi Min Mat Fac Sto Fac Ext Cet Machines Accessed 71 | . 9 . 1 . 12 14 10 16 9 . Terminals 54 | . 8 . . . 9 9 8 11 9 . Fabricators 3 | . . . . . . 1 . 2 . . Repair Stations 4 | . 1 . . . 1 . 1 1 . . Recycling Units 3 | . . . . . 1 2 . . . . Scanalyzers 1 | . . . . . . 1 . . . . Garrison Access 5 | . . . . . 1 1 1 2 . . Total Hacks 166 | . 21 . 1 . 29 46 17 38 14 . Successful 89 | . 10 . 1 . 15 24 8 19 12 . Failed 77 | . 11 . . . 14 22 9 19 2 . Catastrophic 9 | . 1 . . . 1 3 2 2 . . Database Lockouts . | . . . . . . . . . . . Manual 100 | . 15 . 1 . 28 31 7 14 4 . Terminals 131 | . 19 . . . 26 31 12 29 14 . Fabricators 9 | . . . . . . 4 . 5 . . Repair Stations 5 | . 2 . . . 1 . 1 1 . . Recycling Units 4 | . . . . . 1 3 . . . . Scanalyzers 3 | . . . . . . 3 . . . . Garrison Access 13 | . . . . . 1 5 4 3 . . Terminal Hacks 42 | . 5 . 1 . 2 8 4 12 10 . Record 2 | . . . . . . . . 1 1 . Robot Analysis 1 | . . . . . . . . . 1 . Prototype ID Bank 2 | . 2 . . . . . . . . . Open Door 9 | . . . . . . . 3 1 5 . Branch Access Points 3 | . . . . . . 1 . 1 1 . Machine Index 1 | . . . . . . . . 1 . . Terminal Index 4 | . 1 . . . 1 1 . 1 . . Garrison Index 1 | . . . . . . . . 1 . . Unreport Threat 1 | . . . . . . . . 1 . . Locate Traps 5 | . 1 . . . . 2 . 1 1 . Dispatch Records 1 | . . . . . . . . 1 . . Recall Extermination 2 | . . . . . . 1 . 1 . . Hauler Manifests 3 | . . . . . 1 1 1 . . . Registered Components 2 | . . . . . . 1 . 1 . . Zone Layout 4 | . 1 . . . . 1 . 1 1 . Derelict Proto ID Bank 1 | . . . 1 . . . . . . . Fabricator Hacks 2 | . . . . . . 1 . 1 . . Network Status 2 | . . . . . . 1 . 1 . . Repair Station Hacks . | . . . . . . . . . . . Recycling Unit Hacks 2 | . . . . . . 2 . . . . Report Inventory 1 | . . . . . . 1 . . . . Retrieve Matter 1 | . . . . . . 1 . . . . Scanalyzer 2 | . . . . . . 2 . . . . Insert Component 1 | . . . . . . 1 . . . . Analyze 1 | . . . . . . 1 . . . . Garrison Access Hacks 3 | . . . . . 1 1 . 1 . . Seal Access 3 | . . . . . 1 1 . 1 . . Unauthorized Hacks 38 | . 5 . . . 12 10 4 5 2 . Terminals 30 | . 4 . . . 10 8 3 3 2 . Assimilate 12 | . 1 . . . 5 5 . . 1 . Botnet 12 | . 2 . . . 3 2 2 2 1 . Operators 6 | . 1 . . . 2 1 1 1 . . Fabricators 2 | . . . . . . 1 . 1 . . Haulers 2 | . . . . . . 1 . 1 . . Repair Stations 4 | . 1 . . . 1 . 1 1 . . Mechanics 4 | . 1 . . . 1 . 1 1 . . Recycling Units 2 | . . . . . 1 1 . . . . Recyclers 2 | . . . . . 1 1 . . . . Scanalyzers . | . . . . . . . . . . . Garrison Access . | . . . . . . . . . . . Data Cores Recovered 1 | . . . . . . . . 1 . . Used 1 | . . . . . . . . 1 . . Hacking Detections 49 | . 8 . . . 7 10 7 11 6 . Full Trace Events 5 | . 1 . . . 1 2 1 . . . Feedback Events 1 | . . . . . . 1 . . . . Hackware Fried 1 | . . . . . . 1 . . . . Feedback Blocked . | . . . . . . . . . . . Robot Schematics Acquired . | . . . . . . . . . . . Robots Built . | . . . . . . . . . . . Authchips . | . . . . . . . . . . . Time . | . . . . . . . . . . . Total Robot Build Rating . | . . . . . . . . . . . Part Schematics Acquired 1 | . . . . . . 1 . . . . Parts Built . | . . . . . . . . . . . Authchips . | . . . . . . . . . . . Time . | . . . . . . . . . . . Total Part Build Rating . | . . . . . . . . . . . Parts Repaired . | . . . . . . . . . . . Time . | . . . . . . . . . . . Parts Recycled . | . . . . . . . . . . . Recycled Matter . | . . . . . . . . . . . Retrieved Matter . | . . . . . . . . . . . Retrieved Components . | . . . . . . . . . . . Parts Scanalyzed 1 | . . . . . . 1 . . . . Part Schematics Acquired 1 | . . . . . . 1 . . . . Parts Damaged . | . . . . . . . . . . . Bothacking | -11 -10 -10 -10 -9 -8 -7 -7 -6 -6 -6 ------------ Run | Yrd Mat Min Exi Min Mat Fac Sto Fac Ext Cet Used RIF Installer . | . . . . . . . . . . . Robots Hacked . | . . . . . . . . . . . Non-combat . | . . . . . . . . . . . Combat . | . . . . . . . . . . . Robot Hacks Applied . | . . . . . . . . . . . Relay Couplers Released . | . . . . . . . . . . . Fabnet Peak Effective % . | . . . . . . . . . . . Robots Rewired 26 | . . . . . . . . . 26 . Allies Hacked . | . . . . . . . . . . . Hacks Repelled . | . . . . . . . . . . . Allies | -11 -10 -10 -10 -9 -8 -7 -7 -6 -6 -6 -------- Run | Yrd Mat Min Exi Min Mat Fac Sto Fac Ext Cet Total Allies 49 | . 1 . . 1 1 3 10 . 33 . Largest Group 15 | . 1 . . 1 1 3 10 . 15 . Highest-Rated Group 465 | . 10 . . 31 10 46 173 . 465 . Highest-Rated Ally 159 | . 10 . . 31 10 26 29 . 159 . Total Orders 17 | . 2 . . . 6 4 3 . 2 . STAY 6 | . 1 . . . 3 2 . . . . FOLLOW 7 | . 1 . . . 3 2 . . 1 . GUARD 2 | . . . . . . . 1 . 1 . EXPLORE 2 | . . . . . . . 2 . . . Ally Attacks 298 | . . . . 8 . . 68 . 222 . Total Damage 5795 | . . . . 125 . . 901 . 4769 . Kills 58 | . . . . 2 . . 8 . 48 . Allies Corrupted 2 | . . . . . . . 1 . 1 . Allies Melted 1 | . . . . . . . . . 1 . Intel | -11 -10 -10 -10 -9 -8 -7 -7 -6 -6 -6 ------- Run | Yrd Mat Min Exi Min Mat Fac Sto Fac Ext Cet Robot Analysis Total 1 | . . . . . . . . . 1 . Derelict Logs Recovered 4 | . . 3 . 1 . . . . . . Drone Launches 17 | . . . . . . . 17 . . . Drone Recoveries 3 | . . . . . . . 3 . . . Exploration | -11 -10 -10 -10 -9 -8 -7 -7 -6 -6 -6 ------------- Run | Yrd Mat Min Exi Min Mat Fac Sto Fac Ext Cet Turns Passed 9707 | 24 1167 719 206 501 2997 761 680 1094 1549 9 Spaces Moved 8146 | 9 621 524 206 293 1497 1561 471 1478 1468 18 Core 90 | . 13 . . . . . . 1 58 18 Treads 581 | 9 252 104 . . 216 . . . . . Legs 890 | . . . . . 459 . . . 431 . Wheels 2098 | . 356 420 206 293 821 . 2 . . . Hover 2468 | . . . . . . . 12 1477 979 . Flight 2019 | . . . . . 1 1561 457 . . . Fastest Speed 26 | 160 80 95 95 95 95 26 26 34 30 50 Average Speed 74 | 160 131 123 95 95 140 26 31 34 64 50 Slowest Speed 465 | 160 250 240 95 95 465 26 106 350 260 50 Overloaded Moves 146 | . . . . . . . . . 146 . Propulsion Burnouts . | . . . . . . . . . . . Robots Hopped 6 | . . . . . . 6 . . . . Cave-ins Triggered . | . . . . . . . . . . . Exploration Rate (%) 58 | 3 97 98 59 57 81 46 59 46 88 11 Regions Visited 10 Branch Regions 6 Pre-discovered Areas 2 | . . 1 . 1 . . . . . . Known Exits Taken 4 | . . . . . 1 1 . 1 1 . Unknown Exits Taken 6 | 1 1 1 1 1 . . 1 . . . Scrap Searched 1 | . . 1 . . . . . . . . Spaces Dug 62 | . . . . 7 8 7 5 31 4 . Terrain Destroyed 167 | . . 25 . 7 24 7 5 31 68 . Melee 62 | . . . . 7 8 7 5 31 4 . Projectile 3 | . . . . . . . . . 3 . AOE 102 | . . 25 . . 16 . . . 61 . Terrain Rammed . | . . . . . . . . . . . Walls Destroyed . | . . . . . . . . . . . Machines Disabled . | . . . . . . . . . . . Actions | -11 -10 -10 -10 -9 -8 -7 -7 -6 -6 -6 --------- Run | Yrd Mat Min Exi Min Mat Fac Sto Fac Ext Cet Total 11227 | 15 889 567 217 508 2265 1855 949 1965 1979 18 Wait 2320 | . 188 20 9 207 595 220 409 379 293 . Move 8124 | 8 620 523 205 292 1496 1548 470 1477 1467 18 Hop 6 | . . . . . . 6 . . . . Pick Up 54 | . 12 4 1 1 14 7 3 7 5 . Fast Attach 63 | 1 . 1 . . 24 9 8 13 7 . Attach 17 | . 6 . . . 3 2 2 1 3 . Detach 6 | . . . . . 3 1 1 1 . . Swap 69 | 2 7 3 . 1 20 10 5 9 12 . Drop 99 | 2 5 . 2 . 32 17 8 19 14 . Fire 192 | 2 51 16 . . 51 9 . 3 60 . Melee 162 | . . . . 7 26 26 28 56 19 . Ram . | . . . . . . . . . . . Kick . | . . . . . . . . . . . Crush 1 | . . . . . 1 . . . . . Escape Stasis 12 | . . . . . . . 8 . 4 . Rewire 95 | . . . . . . . . . 95 . Trap . | . . . . . . . . . . . Miscellaneous 7 | . . . . . . . 7 . . . Route ------- -11/Scrapyard -10/Materials (discovered 5 exits: [*Mat x3] / [*Min x2]) -10/Mines (discovered 3 exits: [*Mat x2] / *Exi) -10/Exiles -9/Mines (discovered 2 exits: *Mat x2) -8/Materials (discovered 2 exits: *Fac x2) -7/Factory (discovered 5 exits: *Fac / *Sto x2 / *Low x2) -7/Storage -6/Factory (discovered 5 exits: [*Fac] / *Low x2 / *Ext x2) -6/Extension (discovered 2 exits: [*Fac] / *Cet) -6/Cetus History --------- Turn | Location | Event 6 | -11/Scrapyard | Discovered new exit (range 3) 25 | -11/Scrapyard | Entered Materials 304 | -10/Materials | Build established: Mutant 503 | -10/Materials | Lost 3 parts (2n1w) 558 | -10/Materials | Discovered new exit (range 12) 589 | -10/Materials | Discovered new exit (range 5) 620 | -10/Materials | Discovered new exit (range 11) 718 | -10/Materials | Core integrity fell below 50% 767 | -10/Materials | Discovered new exit (range 14) 987 | -10/Materials | Discovered new exit (range 16) 1192 | -10/Materials | Entered Mines 1199 | -10/Mines | Received a Rocket Launcher from a helpful Derelict 1292 | -10/Mines | Discovered new exit (range 10) 1347 | -10/Mines | A weapon hastily lodged in a ceiling crevice suddenly fell to the ground 1547 | -10/Mines | Discovered new exit (range 10) 1640 | -10/Mines | Learned 2 Materials zone layouts 1677 | -10/Mines | Learned 4 Materials zone layouts 1738 | -10/Mines | Deemed a non-threat by the Exiles lab entrance 1738 | -10/Mines | Discovered new exit (range 5) 1911 | -10/Mines | Entered Exiles 1933 | -10/Exiles | Met 8R-AWN 1950 | -10/Exiles | Met EX-HEX 1977 | -10/Exiles | Met EX-BIN 1988 | -10/Exiles | Aligned with FarCom system 1988 | -10/Exiles | Given EX-Vault access code 2010 | -10/Exiles | Opened EX-Vault 2018 | -10/Exiles | Found Superbattery 2039 | -10/Exiles | Warned to stay clear of 0b10 Research branches 2051 | -10/Exiles | Exiles lab attacked by MAIN.C 2101 | -10/Exiles | Discovered new exit (range 10) 2117 | -10/Exiles | Left Exiles lab with Superbattery 2117 | -10/Exiles | Entered Mines 2117 | -9/Mines | Discovered new exit (range 14) 2157 | -9/Mines | Met a Derelict bent on vengeance 2227 | -9/Mines | Met a Derelict testing a Signal Generator 2410 | -9/Mines | Assembled infested the area 2415 | -9/Mines | Assisted by a Guerilla fighting off Assembled 2584 | -9/Mines | Discovered new exit (range 3) 2618 | -9/Mines | Entered Materials 2618 | -8/Materials | Evolved 4 slots: Propulsion x2, Utility x2 2619 | -8/Materials | Identified exit to Factory 3239 | -8/Materials | Build established: Hacker-Mutant 3741 | -8/Materials | Destroyed 7 combat bots 4233 | -8/Materials | Build established: Scavenger-Mutant 4758 | -8/Materials | Discovered exit to Factory (range 11) 5615 | -8/Materials | Entered Factory 5615 | -7/Factory | Accompanied by 1 ally 5615 | -7/Factory | Evolved 2 slots: Utility x2 5890 | -7/Factory | Build established: Sprinter 5916 | -7/Factory | Identified exit to Storage 5916 | -7/Factory | Identified exit to Lower Caves 6007 | -7/Factory | Discovered new exit (range 6) 6195 | -7/Factory | Found Prototype Launcher 6195 | -7/Factory | Identified Rocket Array 6198 | -7/Factory | Found Rocket Array 6300 | -7/Factory | Build established: Hacker-Sprinter 6310 | -7/Factory | System Shield fried by hacking feedback 6376 | -7/Factory | Entered Storage 6536 | -7/Storage | Lost 11 allies 6698 | -7/Storage | Assisted by bots powering up and referring to "LRC-V3" 6706 | -7/Storage | Garrison activated, responded to threat 6792 | -7/Storage | Lost 9 allies 6973 | -7/Storage | Lost 3 parts (1p2n) 7024 | -7/Storage | Discovered new exit (range 12) 7056 | -7/Storage | Entered Factory 7056 | -6/Factory | Evolved 2 slots: Propulsion x1, Utility x1 7426 | -6/Factory | Build established: Hacker-Mutant 7813 | -6/Factory | Discovered new exit (range 7) 8069 | -6/Factory | Discovered new exit (range 19) 8141 | -6/Factory | Identified exit to Lower Caves 8141 | -6/Factory | Identified exit to Extension 8150 | -6/Factory | Entered Extension 8343 | -6/Extension | Rescued a captive Derelict 8344 | -6/Extension | Rescued a captive Derelict 8509 | -6/Extension | Rescued a captive Derelict 8530 | -6/Extension | Spotted B-75 Beast 8817 | -6/Extension | Build established: Commander-Mutant 8836 | -6/Extension | Spotted B-75 Beast 8838 | -6/Extension | Allies destroyed B-75 Beast 8850 | -6/Extension | Disrupted transfer network 8857 | -6/Extension | Allies destroyed B-75 Beast 8892 | -6/Extension | Lost 13 allies 8892 | -6/Extension | Rescued a captive Derelict 8946 | -6/Extension | Rescued a captive Derelict 9077 | -6/Extension | Identified exit to Cetus 9219 | -6/Extension | Discovered new exit (range 10) 9296 | -6/Extension | Build established: Hacker-Mutant 9407 | -6/Extension | Lost 3 allies 9463 | -6/Extension | Rescued A7 9550 | -6/Extension | First assault squad dispatched 9657 | -6/Extension | Lost 5 allies 9667 | -6/Extension | Core integrity fell below 50% 9675 | -6/Extension | Core integrity fell below 20% 9699 | -6/Extension | Entered Cetus 9701 | -6/Cetus | Lost 10 parts (1p4n4u1w) 9707 | -6/Cetus | Spotted Cetus Guard 9707 | -6/Cetus | Spotted Cetus Guard 9707 | -6/Cetus | Spotted Cetus Guard 9708 | -6/Cetus | Destroyed by Cetus Guard with Advanced Variable Charge Gun Last Messages --------------- 09658_ A7 destroyed. 09658_ Imp. Hacking Suite destroyed. 09662_ Arm. Leg destroyed. 09662_ Imp. Deuterium Engine destroyed. 09662_ Cld. Particle Cannon destroyed. 09662_ P-60 Hacker destroyed. 09663_ Dropped Med. Storage Unit. 09666_ Adv. Visual Processing Unit destroyed. 09669_ The unstable cave ceiling collapses. 09670_ Hacking Suite destroyed. 09671_ The unstable cave ceiling collapses. 09676_ Dropped Phasing Sabre. 09677_ The unstable cave ceiling collapses. 09696_ K-01 Serf exits Transfer Station. 09696_ R-10 Processor exits Transfer Station. 09697_ K-01 Serf exits Transfer Station. 09697_ T-07 Excavator exits Transfer Station. LOCATION=CETUS GOAL=ESCAPE 09699_ Receiving FarCom transmissions... Map ----- +----------------------------------------------------+ | ?????????????????????????????????????????????? | | ?????????????????????????????????????????????? | | ?????????????????????????????????????????????? | | ?????????????????????????????????????????????? | | ?????????????????????????????????????????????? | | ?????????????????????????????????????????????? | | ?????????????????????????????????????????????? | | ?????????????????????????????????????????????? | | ?????????????????????????????????????????????? | | ?????????????????????????????????????????????? | | ?????????????????????????????????????????????? | | ?????????????????????????????????????????????? | | ?????????????????????????????????????????????? | | ?????????????????????????????????????????????? | | ?????????????????????????????????????????????? | | ?????????????????????????????????????????????? | | ?????????????????????????????????????????????? | | ?????????????????????????????????????????????? | | ?????????????????????????????????????????????? | | ?????????????????????????????????????????????? | | ?????????????????????????????????????????????? | | ?????????????????????????????????????????????? | | ?????????????????????????????????????????????? | | ????????????????????????? #??????????????????? | | ?###################### ####??Y????????????? | | ?# @ Y ????????? | | ?# w ????????? | | ?# Y ????????? | | ?###############################Y #?????????? | | ?????????????????????????????????????????????? | | ?????????????????????????????????????????????? | | ?????????????????????????????????????????????? | | ?????????????????????????????????????????????? | | ?????????????????????????????????????????????? | | ?????????????????????????????????????????????? | | ?????????????????????????????????????????????? | | ?????????????????????????????????????????????? | | ?????????????????????????????????????????????? | | ?????????????????????????????????????????????? | | ?????????????????????????????????????????????? | | ?????????????????????????????????????????????? | | ?????????????????????????????????????????????? | | ?????????????????????????????????????????????? | | ?????????????????????????????????????????????? | | ?????????????????????????????????????????????? | | ?????????????????????????????????????????????? | | ?????????????????????????????????????????????? | | ?????????????????????????????????????????????? | | ?????????????????????????????????????????????? | | ?????????????????????????????????????????????? | +----------------------------------------------------+ Best States ------------- Heat Dissipation 51 Energy Generation 18 Energy Capacity 310 Matter Stores 300 Matter Capacity 300 Sight Range 20 Terrain Scan Density 10 ECM Strength 2 Additional Mass Support 9 Armor Coverage 600 Power Shielding 66 Evasion (%) 64 Target Analysis 5 Recoil Reduction 3 Matter Filtering 30 Salvage Targeting 2 Offensive Hacking 42 Defensive Hacking 10 Item Schematics ----------------- Adv. ECM Suite | -7/Factory | Scanalyzed Robot Schematics ------------------ None Fabricated ------------ Nothing Alien Tech Used ----------------- None Achievements -------------- Overkill Prison Break Challenges ------------ None Game ------ Seed CloakingQuantumDoublenader Manual? 0 Play Time 03:12:58 Cumulative 71.6 hours Start 2024.04.19 @ 09:13:49 End 2024.04.19 @ 14:51:52 Sessions 6 Manual Loads 0 Difficulty Rogue Special Mode None Game No. 95 Rogue 95 Adventurer 0 Explorer 0 Win Type - Total 2 Types 2/0/0/0/0/0/0/0/0 Lore% 31 Gallery% 40 Achievement% 36 Wizard Run 0 Options --------- Layout 0 ASCII 0 Keyboard 0 Movement Mouse Keybinds 0 Fullscreen 2 Font 18/X11Bold Map View 76x50 Zoom Use 0% Tactical HUD 1 Map Filters NONE Filters NONE Steam 1 RUN: b7e8b8a7-4c4b-48d6-bae4-0729e359feaa